{"text_format":"1","workbook":"xlsx","n_sheets":3,"sheets":["Бланк Методички","Обработка результатов","Печать"],"not_rendered":{"charts":0,"images":1,"macros":1,"external_links":0,"defined_names":2,"comments":0,"pivot_tables":0},"unopened":[],"bounds":{"document_bytes":16777216,"sheet_cells":100000,"rows_first":2000,"rows_last":500,"rows_between":2000,"halvings":0,"cell_chars":16384,"cell_head_chars":4096},"cells_cut":0,"cells_raw":0,"read":"whole","date_system":"1900"}

{"sheet":"Бланк Методички","index":0,"n_rows":52,"n_cols":34,"rows_kept":52,"cut":false,"hidden":false,"merged":[[32,1,32,14],[49,1,49,14],[50,1,50,14],[39,1,39,14],[38,1,38,14],[37,1,37,14],[36,1,36,14],[35,1,35,14],[34,1,34,14],[33,1,33,14],[40,1,40,14],[41,1,41,14],[42,1,42,14],[43,1,43,14],[44,1,44,14],[45,1,45,14],[46,1,46,14],[47,1,47,14],[48,1,48,14],[31,1,31,14],[11,1,11,14],[12,1,12,14],[13,1,13,14],[14,1,14,14],[15,1,15,14],[16,1,16,14],[17,1,17,14],[18,1,18,14],[19,1,19,14],[20,1,20,14],[21,1,21,14],[22,1,22,14],[28,1,28,14],[29,1,29,14],[30,1,30,14],[9,1,9,14],[10,1,10,14],[23,1,23,14],[24,1,24,14],[25,1,25,14],[26,1,26,14],[27,1,27,14],[4,0,7,14],[2,15,2,18],[1,10,1,11],[1,12,1,14],[1,0,1,2],[1,3,1,8],[2,0,2,2],[2,3,2,8]]}
[null,null,null,null,null,null,null,null,null,null,null,null,null,null,null,null,null,null,null,null,null,null,null,null,null,null,null,null,null,null,null,null,10,"5 А"]
["Фамилия, имя",null,null,null,null,null,null,null,null,null,"Класс",null,null,null,null,null,null,null,null,null,null,null,null,null,null,null,null,null,null,null,null,null,11,"5 Б"]
["Возраст",null,null,null,null,null,null,null,null,null,null,null,null,null,null,null,null,null,null,null,null,null,null,null,null,null,null,null,null,null,null,null,12,"5 В"]
[null,null,null,null,null,null,null,null,null,null,null,null,null,null,null,null,null,null,null,null,null,null,null,null,null,null,null,null,null,null,null,null,13]
["Выберите одну из двух предлагаемых профессий, но не с точки зрения престижности, а с точки зрения ее сути: \n\"Могу ли я заниматься данным видом деятельности, хочу ли я этого?\".",null,null,null,null,null,null,null,null,null,null,null,null,null,null,null,null,null,null,null,null,null,null,null,null,null,null,null,null,null,null,"Мальчик",14]
[null,null,null,null,null,null,null,null,null,null,null,null,null,null,null,null,null,null,null,null,null,null,null,null,null,null,null,null,null,null,null,"Девочка",15]
[null,null,null,null,null,null,null,null,null,null,null,null,null,null,null,null,null,null,null,null,null,null,null,null,null,null,null,null,null,null,null,null,16]
[]
[]
[1]
[2,null,null,null,null,null,null,null,null,null,null,null,null,null,null,null,null,null,null,null,null,null,null,null,1,"Инженер-технолог","Инженер-конструктор"]
[3,null,null,null,null,null,null,null,null,null,null,null,null,null,null,null,null,null,null,null,null,null,null,null,2,"Вязальщик","Санитарный врач"]
[4,null,null,null,null,null,null,null,null,null,null,null,null,null,null,null,null,null,null,null,null,null,null,null,3,"Повар","Наборщик"]
[5,null,null,null,null,null,null,null,null,null,null,null,null,null,null,null,null,null,null,null,null,null,null,null,4,"Фотограф","Заведующий магазином"]
[6,null,null,null,null,null,null,null,null,null,null,null,null,null,null,null,null,null,null,null,null,null,null,null,5,"Чертежник","Дизайнер"]
[7,null,null,null,null,null,null,null,null,null,null,null,null,null,null,null,null,null,null,null,null,null,null,null,6,"Философ","Психиатр"]
[8,null,null,null,null,null,null,null,null,null,null,null,null,null,null,null,null,null,null,null,null,null,null,null,7,"Ученый-химик","Бухгалтер"]
[9,null,null,null,null,null,null,null,null,null,null,null,null,null,null,null,null,null,null,null,null,null,null,null,8,"Редактор научного журнала","Адвокат"]
[10,null,null,null,null,null,null,null,null,null,null,null,null,null,null,null,null,null,null,null,null,null,null,null,9,"Лингвист","Переводчик художественной литературы"]
[11,null,null,null,null,null,null,null,null,null,null,null,null,null,null,null,null,null,null,null,null,null,null,null,10,"Врач-психиатр","Статистик"]
[12,null,null,null,null,null,null,null,null,null,null,null,null,null,null,null,null,null,null,null,null,null,null,null,11,"Завуч","Председатель профкома"]
[13,null,null,null,null,null,null,null,null,null,null,null,null,null,null,null,null,null,null,null,null,null,null,null,12,"Спортивный врач","Фельетонист"]
[14,null,null,null,null,null,null,null,null,null,null,null,null,null,null,null,null,null,null,null,null,null,null,null,13,"Нотариус","Снабженец"]
[15,null,null,null,null,null,null,null,null,null,null,null,null,null,null,null,null,null,null,null,null,null,null,null,14,"Оператор ЭВМ","Карикатурист"]
[16,null,null,null,null,null,null,null,null,null,null,null,null,null,null,null,null,null,null,null,null,null,null,null,15,"Политический деятель","Писатель"]
[17,null,null,null,null,null,null,null,null,null,null,null,null,null,null,null,null,null,null,null,null,null,null,null,16,"Садовник","Метеоролог"]
[18,null,null,null,null,null,null,null,null,null,null,null,null,null,null,null,null,null,null,null,null,null,null,null,17,"Водитель троллейбуса","Медсестра"]
[19,null,null,null,null,null,null,null,null,null,null,null,null,null,null,null,null,null,null,null,null,null,null,null,18,"Инженер-электронщик","Секретарь-машинистка"]
[20,null,null,null,null,null,null,null,null,null,null,null,null,null,null,null,null,null,null,null,null,null,null,null,19,"Маляр","Художник по металлу"]
[21,null,null,null,null,null,null,null,null,null,null,null,null,null,null,null,null,null,null,null,null,null,null,null,20,"Биолог","Глазной врач"]
[22,null,null,null,null,null,null,null,null,null,null,null,null,null,null,null,null,null,null,null,null,null,null,null,21,"Телеоператор","Режиссер"]
[23,null,null,null,null,null,null,null,null,null,null,null,null,null,null,null,null,null,null,null,null,null,null,null,22,"Гидролог","Ревизор"]
[24,null,null,null,null,null,null,null,null,null,null,null,null,null,null,null,null,null,null,null,null,null,null,null,23,"Зоолог","Главный зоотехник"]
[25,null,null,null,null,null,null,null,null,null,null,null,null,null,null,null,null,null,null,null,null,null,null,null,24,"Математик","Архитектор"]
[26,null,null,null,null,null,null,null,null,null,null,null,null,null,null,null,null,null,null,null,null,null,null,null,25,"Работник детской комнаты милиции","Счетовод"]
[27,null,null,null,null,null,null,null,null,null,null,null,null,null,null,null,null,null,null,null,null,null,null,null,26,"Учитель","Командир части"]
[28,null,null,null,null,null,null,null,null,null,null,null,null,null,null,null,null,null,null,null,null,null,null,null,27,"Воспитатель","Художник по керамике"]
[29,null,null,null,null,null,null,null,null,null,null,null,null,null,null,null,null,null,null,null,null,null,null,null,28,"Экономист","Заведующий отделом"]
[30,null,null,null,null,null,null,null,null,null,null,null,null,null,null,null,null,null,null,null,null,null,null,null,29,"Корректор","Критик"]
[31,null,null,null,null,null,null,null,null,null,null,null,null,null,null,null,null,null,null,null,null,null,null,null,30,"Завхоз","Дирижер"]
[32,null,null,null,null,null,null,null,null,null,null,null,null,null,null,null,null,null,null,null,null,null,null,null,31,"Радиооператор","Специалист по ядерной физике"]
[33,null,null,null,null,null,null,null,null,null,null,null,null,null,null,null,null,null,null,null,null,null,null,null,32,"Наладчик","Монтажник"]
[34,null,null,null,null,null,null,null,null,null,null,null,null,null,null,null,null,null,null,null,null,null,null,null,33,"Агроном-семеновод","Председатель колхоза"]
[35,null,null,null,null,null,null,null,null,null,null,null,null,null,null,null,null,null,null,null,null,null,null,null,34,"Закройщик-модельер","Декоратор"]
[36,null,null,null,null,null,null,null,null,null,null,null,null,null,null,null,null,null,null,null,null,null,null,null,35,"Археолог","Эксперт"]
[37,null,null,null,null,null,null,null,null,null,null,null,null,null,null,null,null,null,null,null,null,null,null,null,36,"Работник музея","Консультант"]
[38,null,null,null,null,null,null,null,null,null,null,null,null,null,null,null,null,null,null,null,null,null,null,null,37,"Ученый","Актер"]
[39,null,null,null,null,null,null,null,null,null,null,null,null,null,null,null,null,null,null,null,null,null,null,null,38,"Логопед","Стенографист"]
[40,null,null,null,null,null,null,null,null,null,null,null,null,null,null,null,null,null,null,null,null,null,null,null,39,"Врач","Дипломат"]
[41,null,null,null,null,null,null,null,null,null,null,null,null,null,null,null,null,null,null,null,null,null,null,null,40,"Главный бухгалтер","Директор"]
[42,null,null,null,null,null,null,null,null,null,null,null,null,null,null,null,null,null,null,null,null,null,null,null,41,"Поэт","Психолог"]
[null,null,null,null,null,null,null,null,null,null,null,null,null,null,null,null,null,null,null,null,null,null,null,null,42,"Архивариус","Скульптор"]

{"sheet":"Обработка результатов","index":1,"n_rows":88,"n_cols":23,"rows_kept":88,"cut":false,"hidden":false,"merged":[[31,12,44,17],[31,18,44,21],[31,22,44,25],[45,2,58,5],[45,6,58,11],[45,12,58,17],[45,18,58,21],[45,22,58,25],[31,0,44,1],[45,0,58,1],[31,2,44,5],[31,6,44,11],[73,0,86,1],[16,18,16,21],[17,22,30,25],[16,22,16,25],[16,0,16,1],[16,2,16,5],[16,6,16,11],[16,12,16,17],[17,18,30,21],[17,12,30,17],[17,6,30,11],[17,2,30,5],[17,0,30,1],[14,18,14,20],[8,18,8,20],[9,18,9,20],[10,18,10,20],[11,18,11,20],[12,18,12,20],[13,18,13,20],[59,0,72,1],[59,2,72,5],[5,0,5,3],[6,0,6,3],[0,0,0,17],[8,0,8,17],[9,0,9,3],[1,0,1,3],[2,0,2,3],[3,0,3,3],[4,0,4,3],[10,0,10,3],[11,0,11,3],[12,0,12,3],[13,0,13,3],[14,0,14,3],[87,22,100,25],[73,2,86,5],[73,6,86,11],[73,12,86,17],[73,18,86,21],[87,0,100,1],[87,2,100,5],[87,6,100,11],[87,12,100,17],[87,18,100,21],[59,22,72,25],[59,6,72,11],[59,12,72,17],[59,18,72,21],[73,22,86,25]]}
["Ключ к тесту"]
["Реалистический тип: ",null,null,null,"1а","2а","3а","4а","5а","16а","17а","18а","19а","21а","31а","32а","33а","34а"]
["Интеллектуальный тип: ",null,null,null,"1б","6а","7а","8а","9а","16б","20а","22а","23а","24а","31б","35а","36а","37а"]
["Социальный тип: ",null,null,null,"2б","6б","10а","11а","12а","17б","20б","25а","26а","27а","36б","38а","39а","41б"]
["Конвенциальный тип: ",null,null,null,"3б","7б","10б","13а","14а","18б","22б","25б","28а","29а","32б","40а","42а","38б"]
["Предприимчивый тип: ",null,null,null,"4б","8б","11б","13б","15а","23б","26б","28б","30а","33б","35б","37б","39б","40б"]
["Артистичный тип: ",null,null,null,"5а","9б","12б","14б","15б","19б","21б","24б","27б","29б","30б","34б","41а","42б"]
[]
["Ответы",null,null,null,null,null,null,null,null,null,null,null,null,null,null,null,null,null,"Результат"]
["Реалистический тип: ",null,null,null,{"$f":"IF('Бланк Методички'!B10='Бланк Методички'!Z11,1,0)","v":0},{"$f":"IF('Бланк Методички'!B11='Бланк Методички'!Z12,1,0)","v":0},{"$f":"IF('Бланк Методички'!B12='Бланк Методички'!Z13,1,0)","v":0},{"$f":"IF('Бланк Методички'!B13='Бланк Методички'!Z14,1,0)","v":0},{"$f":"IF('Бланк Методички'!B14='Бланк Методички'!Z15,1,0)","v":0},{"$f":"IF('Бланк Методички'!B25='Бланк Методички'!Z26,1,0)","v":0},{"$f":"IF('Бланк Методички'!B26='Бланк Методички'!Z27,1,0)","v":0},{"$f":"IF('Бланк Методички'!B27='Бланк Методички'!Z28,1,0)","v":0},{"$f":"IF('Бланк Методички'!B28='Бланк Методички'!Z29,1,0)","v":0},{"$f":"IF('Бланк Методички'!B30='Бланк Методички'!Z31,1,0)","v":0},{"$f":"IF('Бланк Методички'!B40='Бланк Методички'!Z41,1,0)","v":0},{"$f":"IF('Бланк Методички'!B41='Бланк Методички'!Z42,1,0)","v":0},{"$f":"IF('Бланк Методички'!B42='Бланк Методички'!Z43,1,0)","v":0},{"$f":"IF('Бланк Методички'!B43='Бланк Методички'!Z44,1,0)","v":0},{"$f":"COUNTIF(E10:R10,\"1\")","v":0}]
["Интеллектуальный тип: ",null,null,null,{"$f":"IF('Бланк Методички'!B10='Бланк Методички'!AA11,1,0)","v":0},{"$f":"IF('Бланк Методички'!B15='Бланк Методички'!Z16,1,0)","v":0},{"$f":"IF('Бланк Методички'!B16='Бланк Методички'!Z17,1,0)","v":0},{"$f":"IF('Бланк Методички'!B17='Бланк Методички'!Z18,1,0)","v":0},{"$f":"IF('Бланк Методички'!B18='Бланк Методички'!Z19,1,0)","v":0},{"$f":"IF('Бланк Методички'!B25='Бланк Методички'!AA26,1,0)","v":0},{"$f":"IF('Бланк Методички'!B29='Бланк Методички'!Z30,1,0)","v":0},{"$f":"IF('Бланк Методички'!B31='Бланк Методички'!Z32,1,0)","v":0},{"$f":"IF('Бланк Методички'!B32='Бланк Методички'!Z33,1,0)","v":0},{"$f":"IF('Бланк Методички'!B33='Бланк Методички'!Z34,1,0)","v":0},{"$f":"IF('Бланк Методички'!B40='Бланк Методички'!AA41,1,0)","v":0},{"$f":"IF('Бланк Методички'!B44='Бланк Методички'!Z45,1,0)","v":0},{"$f":"IF('Бланк Методички'!B45='Бланк Методички'!Z46,1,0)","v":0},{"$f":"IF('Бланк Методички'!B46='Бланк Методички'!Z47,1,0)","v":0},{"$f":"COUNTIF(E11:R11,\"1\")","v":0}]
["Социальный тип: ",null,null,null,{"$f":"IF('Бланк Методички'!B11='Бланк Методички'!AA12,1,0)","v":0},{"$f":"IF('Бланк Методички'!B15='Бланк Методички'!AA16,1,0)","v":0},{"$f":"IF('Бланк Методички'!B19='Бланк Методички'!Z20,1,0)","v":0},{"$f":"IF('Бланк Методички'!B20='Бланк Методички'!Z21,1,0)","v":0},{"$f":"IF('Бланк Методички'!B21='Бланк Методички'!Z22,1,0)","v":0},{"$f":"IF('Бланк Методички'!B26='Бланк Методички'!AA27,1,0)","v":0},{"$f":"IF('Бланк Методички'!B29='Бланк Методички'!AA30,1,0)","v":0},{"$f":"IF('Бланк Методички'!B34='Бланк Методички'!Z35,1,0)","v":0},{"$f":"IF('Бланк Методички'!B35='Бланк Методички'!Z36,1,0)","v":0},{"$f":"IF('Бланк Методички'!B36='Бланк Методички'!Z37,1,0)","v":0},{"$f":"IF('Бланк Методички'!B45='Бланк Методички'!AA46,1,0)","v":0},{"$f":"IF('Бланк Методички'!B47='Бланк Методички'!Z48,1,0)","v":0},{"$f":"IF('Бланк Методички'!B48='Бланк Методички'!Z49,1,0)","v":0},{"$f":"IF('Бланк Методички'!B50='Бланк Методички'!AA51,1,0)","v":0},0]
["Конвенциальный тип: ",null,null,null,{"$f":"IF('Бланк Методички'!B12='Бланк Методички'!AA13,1,0)","v":0},{"$f":"IF('Бланк Методички'!B16='Бланк Методички'!AA17,1,0)","v":0},{"$f":"IF('Бланк Методички'!B19='Бланк Методички'!AA20,1,0)","v":0},{"$f":"IF('Бланк Методички'!B22='Бланк Методички'!Z23,1,0)","v":0},{"$f":"IF('Бланк Методички'!B23='Бланк Методички'!Z24,1,0)","v":0},{"$f":"IF('Бланк Методички'!B27='Бланк Методички'!AA28,1,0)","v":0},{"$f":"IF('Бланк Методички'!B31='Бланк Методички'!AA32,1,0)","v":0},{"$f":"IF('Бланк Методички'!B34='Бланк Методички'!AA35,1,0)","v":0},{"$f":"IF('Бланк Методички'!B37='Бланк Методички'!Z38,1,0)","v":0},{"$f":"IF('Бланк Методички'!B38='Бланк Методички'!Z39,1,0)","v":0},{"$f":"IF('Бланк Методички'!B41='Бланк Методички'!AA42,1,0)","v":0},{"$f":"IF('Бланк Методички'!B49='Бланк Методички'!Z50,1,0)","v":0},{"$f":"IF('Бланк Методички'!B51='Бланк Методички'!Z52,1,0)","v":0},{"$f":"IF('Бланк Методички'!B47='Бланк Методички'!AA48,1,0)","v":0},0]
["Предприимчивый тип: ",null,null,null,{"$f":"IF('Бланк Методички'!B13='Бланк Методички'!AA14,1,0)","v":0},{"$f":"IF('Бланк Методички'!B17='Бланк Методички'!AA18,1,0)","v":0},{"$f":"IF('Бланк Методички'!B20='Бланк Методички'!AA21,1,0)","v":0},{"$f":"IF('Бланк Методички'!B22='Бланк Методички'!AA23,1,0)","v":0},{"$f":"IF('Бланк Методички'!B24='Бланк Методички'!Z25,1,0)","v":0},{"$f":"IF('Бланк Методички'!B32='Бланк Методички'!AA33,1,0)","v":0},{"$f":"IF('Бланк Методички'!B35='Бланк Методички'!AA36,1,0)","v":0},{"$f":"IF('Бланк Методички'!B37='Бланк Методички'!AA38,1,0)","v":0},{"$f":"IF('Бланк Методички'!B39='Бланк Методички'!Z40,1,0)","v":0},{"$f":"IF('Бланк Методички'!B42='Бланк Методички'!AA43,1,0)","v":0},{"$f":"IF('Бланк Методички'!B44='Бланк Методички'!AA45,1,0)","v":0},{"$f":"IF('Бланк Методички'!B46='Бланк Методички'!AA47,1,0)","v":0},{"$f":"IF('Бланк Методички'!B48='Бланк Методички'!AA49,1,0)","v":0},{"$f":"IF('Бланк Методички'!B49='Бланк Методички'!AA50,1,0)","v":0},0]
["Артистичный тип: ",null,null,null,{"$f":"IF('Бланк Методички'!B14='Бланк Методички'!Z15,1,0)","v":0},{"$f":"IF('Бланк Методички'!B18='Бланк Методички'!AA19,1,0)","v":0},{"$f":"IF('Бланк Методички'!B21='Бланк Методички'!AA22,1,0)","v":0},{"$f":"IF('Бланк Методички'!B23='Бланк Методички'!AA24,1,0)","v":0},{"$f":"IF('Бланк Методички'!B24='Бланк Методички'!AA25,1,0)","v":0},{"$f":"IF('Бланк Методички'!B28='Бланк Методички'!AA29,1,0)","v":0},{"$f":"IF('Бланк Методички'!B30='Бланк Методички'!AA31,1,0)","v":0},{"$f":"IF('Бланк Методички'!B33='Бланк Методички'!AA34,1,0)","v":0},{"$f":"IF('Бланк Методички'!B36='Бланк Методички'!AA37,1,0)","v":0},{"$f":"IF('Бланк Методички'!B38='Бланк Методички'!AA39,1,0)","v":0},{"$f":"IF('Бланк Методички'!B39='Бланк Методички'!AA40,1,0)","v":0},{"$f":"IF('Бланк Методички'!B43='Бланк Методички'!AA44,1,0)","v":0},{"$f":"IF('Бланк Методички'!B50='Бланк Методички'!Z51,1,0)","v":0},{"$f":"IF('Бланк Методички'!B51='Бланк Методички'!AA52,1,0)","v":0},0]
[]
["Тип",null,"Предпочитаемый вид деятельности",null,null,null,"Личностные характеристики",null,null,null,null,null,"Предпочитаемое окружение",null,null,null,null,null,"Хобби, профессии",null,null,null,"Примечание"]
["Реалистический\n(Р-тип) ",null,"• Механические виды деятельности, управление большегрузными машинами, тяжелым оборудованием, управление механизмами и использование инструментов, требующих точности, ловкости, тонкой моторной координации.\n• Строительство, ремонт, военные виды деятельности, конструкторские работы ",null,null,null,"• Физическая сила, психомоторные навыки, ручная ловкость, механические и математические способности \n• Эмоциональная стабильность, практичность, уверенность в себе, целеустремленность, ответственность консервативность, ригидность, конформность.\n• Работает тщательно, аккуратно, систематично, предпочитает регламентацию работы ",null,null,null,null,null,"• Природа, сельская местность \n• Наименьшее взаимодействие с другими людьми \n• Организации, основанные на жесткой иерархической подчиненности и авторитарности (вооруженные силы, УВД и т. п.) \n• Организации, производящие конкретные ощутимые продукты.\n• Транспорт, инженерные, технические, энергетические предприятия ",null,null,null,null,null,"Хобби:\n• Реставрация старых механизмов (автомобили, часы, фотоаппараты и т. п.), ремонт, конструирование, сборка различных устройств\n• Строительство и восстановительные работы\n• Фермерство, обустройство дачи, охота, рыболовство, туризм.\nПрофессии:\nкартограф, фермер, инженер, лесничий, пшют, милиционер, ветеринар, водитель, сварщик ",null,null,null,"Более всего не схож с социальным типом. Взаимодействие с ним может вызвать недружелюбие, резкость, непонимание. Наиболее близок к интеллектуальному и конвенциональному типам личности "]
[]
[]
[]
[]
[]
[]
[]
[]
[]
[]
[]
[]
[]
["Интеллектуальный\n(И-тип) ",null,"• Сбор информации и ее систематизация; выполнение сложных или абстрактных заданий\n• Независимая, самостоятельная научная или лабораторная работа ",null,null,null,"• Развитые математические, аналитические способности, склонности к научной работе, склонности к рациональному логическому анализу \n• Рациональность, эрудированность\n• Независимость, самомотивация, ориентация на задачу, сдержанность\n• Интроспективность, оригинальность, ориентация на нетрадиционные методы ",null,null,null,null,null,"• Слабоструктурные организации\n• Организации, ориентированные на достижение (исследовательские и проектные лаборатории, университеты, институты)\n• Ограниченность общения с другими людьми ",null,null,null,null,null,"Хобби:\n• Работа, сложные виды деятельности, которые требуют освоения многих факторов, деталей, принципов (яхтенный спорт, альпинизм, астрономия и т. п.)\n• Компьютеры, чтение научной литературы.\nПрофессии:\n- биохимик, ботаник, энтомолог, генетик, геофизик, антрополог, астроном, геолог, программист, криминалист, инженер-конструктор, искусствовед, психиатр ",null,null,null,"Более всего не схож с предпринимательским типом. Это вызывает много проблем в процессе взаимодействия. Близок к реалистическому и артистическому типам"]
[]
[]
[]
[]
[]
[]
[]
[]
[]
[]
[]
[]
[]
["Социальный\n(С-тип) ",null,"• Обучение, объяснение, разъяснение\n• Оказание помощи организация групповых мероприятий, ведение дискуссий ",null,null,null,"• Развитые вербальные, коммуникативные способности\n• Преподавательские, ораторские способности, навыки слушания ",null,null,null,null,null,"• Социальные организации, школы, религиозные организации\n• Медицинские учреждения, психологические и консультативные службы ",null,null,null,null,null,"Хобби:\n• Организация развлечений\n• Выполнение благотворительной и социальной работы\n\nПрофессии\n- учитель, воспитатель, работник здравоохранения, психолог ",null,null,null,"Более всего несхож с реалистическим типом, близок к артистическим и предприимчивым типами "]
[]
[]
[]
[]
[]
[]
[]
[]
[]
[]
[]
[]
[]
["Конвенциальный (К-тип) ",null,"• Работа, требующая внимания к деталям и аккуратности.\n• Ведение карточек, хранение и систематизация записей, фактов, данных финансовых книг\n• Подготовка отчетов, схем, таблиц, диаграмм ",null,null,null,"• Развитые арифметические и канцелярские способности, ручная тонкая моторика\n• Высокий само-контроль, консервативность, практичность, упорство\n• Потребность в четком планировании работы ",null,null,null,null,null,"• Большие организации, финансовые организации (банки, бухгалтерские конторы)\n• Отделы контроля качества, архивы, картотеки, инспекции\n• Структурированные организации с четкой иерархией ",null,null,null,null,null,"Хобби:\n• Коллекционирование\n• Постройка моделей\n• Игры с четкими и ясными правилами\nПрофессии:\n- бухгалтер, кассир, счетовод, банкир, секретарь ",null,null,null,"Несхож с артистическим типом, ближе всего к реалистическому и предприимчивому типам "]
[]
[]
[]
[]
[]
[]
[]
[]
[]
[]
[]
[]
[]
["Предпринимательский\n(П-тип) ",null,"• Руководство организациями, управление людьми \n• Финансовый и межличностный риск \n• Продажа, покупка, коммерция, предпринимательство",null,null,null,"• Развитые организаторские способности, вербальные способности\n• Лидерские способности\n• Доминантность, агрессивность, экстравертированность\n• Ориентация на деньги, власть ",null,null,null,null,null,"• Посты в государственных и политических организациях\n• Промышленные компании, агенства по продаже недвижимости ",null,null,null,null,null,"Хобби:\n• Спортивные состязания\n• Организация вечеринок, увеселении\nПрофессии:\nпредприниматель, биржевой брокер, адвокат, страховой агент, менеджер ",null,null,null,"Затруднено взаимодействие с интеллектуальным типом, хорошее взаимодействие с социальным и кон-венциальным типами "]
[]
[]
[]
[]
[]
[]
[]
[]
[]
[]
[]
[]
[]
["Художественный (Х-тип) ",null,"• Художественное творчество (живопись, скульптура, фотография, создание украшений, дизайн, композиция, литературное творчество) \n• Игра на музыкальных инструментах \n• Исполнительская актерская деятельность ",null,null,null,"• Развитые воображение, творческое мышление\n• Музыкальные и артистические способности\n• Нонконформизм, экспрессивность, интуитивность, демонстративность, стремление к самовыражению ",null,null,null,null,null,"• Неструктурированные, гибкие организации, дающие возможность для самовыражения (артистические студии, театры, концертные залы и т. д.)\n• Музеи, библиотеки, галереи, рекламные и дизайнерские фирмы ",null,null,null,null,null,"Хобби:\n• Фотография, рисование, живопись, игра на музыкальных инструментах\n• Посещение концертов, театров, музеев\nПрофессии:\nартист, архитектор, скульптор, дирижер, фотограф, учитель музыки, музейный работник ",null,null,null,"Более всего несхож с конвенци-альным типом, эффективное взаимодействие с социальным и интеллектуальным типами "]

{"sheet":"Печать","index":2,"n_rows":11,"n_cols":8,"rows_kept":11,"cut":false,"hidden":false,"merged":[[0,0,0,8],[2,7,2,8],[3,7,3,8],[2,1,2,5],[3,1,3,5],[10,0,10,3],[5,4,5,8],[6,4,6,8],[7,4,7,8],[8,4,8,8],[9,4,9,8],[10,4,10,8],[5,0,5,3],[6,0,6,3],[7,0,7,3],[8,0,8,3],[9,0,9,3]]}
["Карта интересов (КИ-144)\n(А.Е. Голомшток. Модификация Е.И. Сибиль)"]
[]
["ФИО",{"$f":"PROPER('Бланк Методички'!D2)","v":""},null,null,null,null,"Класс",{"$f":"'Бланк Методички'!M2","v":0}]
["Возраст",{"$f":"CONCATENATE('Бланк Методички'!D3, \" лет\")","v":" лет"},null,null,null,null,"Дата",{"$f":"TODAY()","v":"2018-01-27"}]
[]
["Реалистический тип: ",null,null,null,{"$f":"'Обработка результатов'!S10","v":0}]
["Интеллектуальный тип: ",null,null,null,{"$f":"'Обработка результатов'!S11","v":0}]
["Социальный тип: ",null,null,null,{"$f":"'Обработка результатов'!S12","v":0}]
["Конвенциальный тип: ",null,null,null,{"$f":"'Обработка результатов'!S13","v":0}]
["Предприимчивый тип: ",null,null,null,{"$f":"'Обработка результатов'!S14","v":0}]
["Артистичный тип: ",null,null,null,{"$f":"'Обработка результатов'!S15","v":0}]